[Event "*** Titled Tuesday Blitz"]
[Site "Chess.com"]
[Date "2021.02.09"]
[Round "4"]
[White "oneshot007"]
[Black "Rud_Makarian"]
[Result "1-0"]
[WhiteElo "2552"]
[BlackElo "2831"]
[TimeControl "180+1"]
[EndTime "10:38:36 PST"]
[Termination "oneshot007 won by resignation"]

1. e4 {[%clk 0:03:00.3]} 1... e5 {[%clk 0:02:59.6]} 2. Nf3 {[%clk 0:02:58.8]}
2... Nc6 {[%clk 0:03:00]} 3. d4 {[%clk 0:02:59.7]} 3... exd4 {[%clk 0:02:59.1]}
4. Nxd4 {[%clk 0:02:57.1]} 4... Nf6 {[%clk 0:02:59.4]} 5. Nxc6 {[%clk
0:02:53.6]} 5... bxc6 {[%clk 0:03:00.3]} 6. e5 {[%clk 0:02:53]} 6... Qe7 {[%clk
0:03:00.1]} 7. Qe2 {[%clk 0:02:53.1]} 7... Nd5 {[%clk 0:03:00.3]} 8. g3 {[%clk
0:02:53.1]} 8... g6 {[%clk 0:02:59.3]} 9. c4 {[%clk 0:02:48.7]} 9... Ba6 {[%clk
0:02:58.5]} 10. b3 {[%clk 0:02:48.1]} 10... Bg7 {[%clk 0:02:58.9]} 11. Bb2
{[%clk 0:02:48.3]} 11... O-O {[%clk 0:02:59.5]} 12. Bg2 {[%clk 0:02:48.6]} 12...
Rfe8 {[%clk 0:02:57.6]} 13. O-O {[%clk 0:02:48.5]} 13... Bxe5 {[%clk 0:02:58.2]}
14. Bxe5 {[%clk 0:02:47.3]} 14... Qxe5 {[%clk 0:02:59.1]} 15. Qxe5 {[%clk
0:02:47.8]} 15... Rxe5 {[%clk 0:03:00]} 16. cxd5 {[%clk 0:02:47.9]} 16... Bxf1
{[%clk 0:03:00.9]} 17. Bxf1 {[%clk 0:02:47.9]} 17... cxd5 {[%clk 0:03:01.2]} 18.
Nc3 {[%clk 0:02:12.2]} 18... c6 {[%clk 0:02:56.8]} 19. Rd1 {[%clk 0:02:11.5]}
19... Kf8 {[%clk 0:02:55.3]} 20. f4 {[%clk 0:02:09.4]} 20... Ree8 {[%clk
0:02:51.8]} 21. Kf2 {[%clk 0:02:07.9]} 21... Ke7 {[%clk 0:02:51.9]} 22. b4
{[%clk 0:02:05.8]} 22... Kd6 {[%clk 0:02:46.5]} 23. Ba6 {[%clk 0:02:00.6]} 23...
Rab8 {[%clk 0:02:44.7]} 24. a3 {[%clk 0:02:00]} 24... Rb6 {[%clk 0:02:42.5]} 25.
Be2 {[%clk 0:01:56.4]} 25... a5 {[%clk 0:02:13.7]} 26. b5 {[%clk 0:01:41]} 26...
Rb7 {[%clk 0:02:08.3]} 27. a4 {[%clk 0:01:38.8]} 27... Kc5 {[%clk 0:02:05.8]}
28. Bf3 {[%clk 0:01:36.9]} 28... Kb4 {[%clk 0:02:01.6]} 29. bxc6 {[%clk
0:01:14]} 29... dxc6 {[%clk 0:01:48.6]} 30. Rb1+ {[%clk 0:01:13.4]} 30... Kxc3
{[%clk 0:01:49]} 31. Rxb7 {[%clk 0:01:13.2]} 31... Rc8 {[%clk 0:01:46.4]} 32.
Rxf7 {[%clk 0:01:11.5]} 32... d4 {[%clk 0:01:44.4]} 33. Be4 {[%clk 0:00:56.1]}
33... c5 {[%clk 0:01:43.2]} 34. Rxh7 {[%clk 0:00:55]} 34... c4 {[%clk
0:01:42.2]} 35. Rd7 {[%clk 0:00:53.7]} 35... d3 {[%clk 0:01:39.5]} 36. Bxg6
{[%clk 0:00:48.3]} 36... Rb8 {[%clk 0:01:21.2]} 37. Ke3 {[%clk 0:00:47.6]} 37...
Kc2 {[%clk 0:01:10]} 38. Rd4 {[%clk 0:00:46.2]} 38... Kd1 {[%clk 0:01:01.1]} 39.
Bxd3 {[%clk 0:00:41.1]} 39... cxd3 {[%clk 0:00:58]} 40. Rxd3+ {[%clk 0:00:42]}
40... Kc2 {[%clk 0:00:58.5]} 41. Rd5 {[%clk 0:00:42.1]} 41... Rb3+ {[%clk
0:00:57.8]} 42. Kf2 {[%clk 0:00:38.6]} 42... Kc3 {[%clk 0:00:58.3]} 43. Rxa5
{[%clk 0:00:38.5]} 43... Rb2+ {[%clk 0:00:58.6]} 44. Kf3 {[%clk 0:00:39]} 44...
Rxh2 {[%clk 0:00:58.5]} 45. Re5 {[%clk 0:00:38.2]} 1-0

[Event "*** Titled Tuesday Blitz"]
[Site "Chess.com"]
[Date "2021.02.09"]
[Round "4"]
[White "VladimirBugayev"]
[Black "zacachess"]
[Result "1-0"]
[WhiteElo "2276"]
[BlackElo "2418"]
[TimeControl "180+1"]
[EndTime "10:38:36 PST"]
[Termination "VladimirBugayev won by resignation"]

1. e4 {[%clk 0:03:00.9]} 1... c5 {[%clk 0:02:59.2]} 2. Nc3 {[%clk 0:03:00]} 2...
Nc6 {[%clk 0:02:59]} 3. Bb5 {[%clk 0:03:00.6]} 3... Nd4 {[%clk 0:02:58.4]} 4.
Nf3 {[%clk 0:03:01.2]} 4... g6 {[%clk 0:02:57.9]} 5. Nxd4 {[%clk 0:03:00.2]}
5... cxd4 {[%clk 0:02:58.8]} 6. Ne2 {[%clk 0:03:00.7]} 6... Bg7 {[%clk
0:02:58.8]} 7. O-O {[%clk 0:03:01.4]} 7... a6 {[%clk 0:02:58.7]} 8. Ba4 {[%clk
0:03:00.2]} 8... b5 {[%clk 0:02:48.5]} 9. Bb3 {[%clk 0:02:59.5]} 9... d6 {[%clk
0:02:39]} 10. d3 {[%clk 0:02:54.4]} 10... e6 {[%clk 0:02:32.4]} 11. a4 {[%clk
0:02:45.4]} 11... Rb8 {[%clk 0:02:22.7]} 12. axb5 {[%clk 0:02:37.1]} 12... axb5
{[%clk 0:02:23.6]} 13. Qe1 {[%clk 0:02:34.7]} 13... Ne7 {[%clk 0:02:20.4]} 14.
Bg5 {[%clk 0:02:05.4]} 14... h6 {[%clk 0:02:19]} 15. Bxe7 {[%clk 0:01:53.7]}
15... Qxe7 {[%clk 0:02:19.9]} 16. Qb4 {[%clk 0:01:53.4]} 16... e5 {[%clk
0:02:13]} 17. Ra5 {[%clk 0:01:48.7]} 17... Bd7 {[%clk 0:02:09.6]} 18. Ra6 {[%clk
0:01:30.3]} 18... Bc8 {[%clk 0:02:09.4]} 19. Ra5 {[%clk 0:01:20.9]} 19... Bd7
{[%clk 0:02:09.4]} 20. Ra7 {[%clk 0:01:20.5]} 20... O-O {[%clk 0:02:03.5]} 21.
Rfa1 {[%clk 0:01:19.8]} 21... Rfc8 {[%clk 0:01:32.4]} 22. f4 {[%clk 0:01:10.8]}
22... Rc6 {[%clk 0:00:25.7]} 23. fxe5 {[%clk 0:01:05.7]} 23... Bxe5 {[%clk
0:00:26.6]} 24. Rf1 {[%clk 0:01:04.4]} 24... Bf6 {[%clk 0:00:17.9]} 25. Nxd4
{[%clk 0:00:59.1]} 25... Rc5 {[%clk 0:00:16.1]} 26. Nf3 {[%clk 0:00:54.8]} 26...
Qe8 {[%clk 0:00:13.3]} 27. d4 {[%clk 0:00:51.9]} 27... Rcc8 {[%clk 0:00:11.9]}
28. e5 {[%clk 0:00:51.3]} 28... dxe5 {[%clk 0:00:10.4]} 29. Nxe5 {[%clk
0:00:49.3]} 29... Bxe5 {[%clk 0:00:07.8]} 30. Bxf7+ {[%clk 0:00:48.2]} 30...
Qxf7 {[%clk 0:00:07.8]} 31. Rxf7 {[%clk 0:00:48.1]} 31... Kxf7 {[%clk
0:00:08.7]} 32. dxe5 {[%clk 0:00:47.6]} 32... Ke8 {[%clk 0:00:08.7]} 33. Qd6
{[%clk 0:00:46.2]} 1-0

[Event "*** Titled Tuesday Blitz"]
[Site "Chess.com"]
[Date "2021.02.09"]
[Round "4"]
[White "RaneshRatnesan"]
[Black "mapleaff"]
[Result "0-1"]
[WhiteElo "2193"]
[BlackElo "2407"]
[TimeControl "180+1"]
[EndTime "10:38:37 PST"]
[Termination "mapleaff won by resignation"]

1. d4 {[%clk 0:03:00.9]} 1... Nf6 {[%clk 0:02:59.7]} 2. Bf4 {[%clk 0:02:59.3]}
2... c6 {[%clk 0:02:57.5]} 3. e3 {[%clk 0:02:56.3]} 3... Qb6 {[%clk 0:02:56.9]}
4. Qc1 {[%clk 0:02:55.1]} 4... Nd5 {[%clk 0:02:54.7]} 5. Bg3 {[%clk 0:02:54]}
5... h5 {[%clk 0:02:55]} 6. h3 {[%clk 0:02:48.4]} 6... d6 {[%clk 0:02:47.6]} 7.
Nf3 {[%clk 0:02:48.1]} 7... Bf5 {[%clk 0:02:46.4]} 8. c3 {[%clk 0:02:42.2]} 8...
g6 {[%clk 0:02:33.9]} 9. Nbd2 {[%clk 0:02:41.3]} 9... Bh6 {[%clk 0:02:32.1]} 10.
h4 {[%clk 0:02:18.9]} 10... O-O {[%clk 0:02:24.5]} 11. Ng5 {[%clk 0:02:18.7]}
11... Nf6 {[%clk 0:02:21.7]} 12. Be2 {[%clk 0:02:08.5]} 12... Nbd7 {[%clk
0:02:09.7]} 13. b4 {[%clk 0:01:38.7]} 13... a5 {[%clk 0:02:06.1]} 14. a3 {[%clk
0:01:38.8]} 14... axb4 {[%clk 0:02:05.7]} 15. axb4 {[%clk 0:01:39.7]} 15... Rxa1
{[%clk 0:02:05.6]} 16. Qxa1 {[%clk 0:01:40.6]} 16... c5 {[%clk 0:02:04.2]} 17.
bxc5 {[%clk 0:01:37.5]} 17... dxc5 {[%clk 0:02:02.7]} 18. e4 {[%clk 0:01:25.1]}
18... Bxg5 {[%clk 0:02:01.8]} 19. hxg5 {[%clk 0:01:08.1]} 19... Nxe4 {[%clk
0:01:59.9]} 20. Nxe4 {[%clk 0:01:09]} 20... Bxe4 {[%clk 0:02:00.7]} 21. O-O
{[%clk 0:01:08.5]} 21... cxd4 {[%clk 0:01:57.8]} 22. cxd4 {[%clk 0:01:08.5]}
22... Qc6 {[%clk 0:01:54]} 23. f3 {[%clk 0:01:04.4]} 23... Bd5 {[%clk
0:01:50.9]} 24. Rc1 {[%clk 0:01:01.8]} 24... Qe6 {[%clk 0:01:50.3]} 25. Bf1
{[%clk 0:00:55.6]} 25... Qe3+ {[%clk 0:01:45.6]} 26. Bf2 {[%clk 0:00:55.7]}
26... Qxg5 {[%clk 0:01:44.6]} 27. Rc7 {[%clk 0:00:54.5]} 27... Nf6 {[%clk
0:01:36.9]} 28. Qe1 {[%clk 0:00:33.5]} 28... Bxf3 {[%clk 0:01:25.5]} 29. Rxe7
{[%clk 0:00:20.6]} 29... Bc6 {[%clk 0:01:05.7]} 30. Bh4 {[%clk 0:00:18.8]} 30...
Qf4 {[%clk 0:00:53.1]} 31. Bg3 {[%clk 0:00:15.7]} 31... Qxd4+ {[%clk 0:00:52.3]}
32. Bf2 {[%clk 0:00:14.5]} 32... Qd5 {[%clk 0:00:45.4]} 0-1

[Event "*** Titled Tuesday Blitz"]
[Site "Chess.com"]
[Date "2021.02.09"]
[Round "4"]
[White "Fandorine"]
[Black "chessdjw"]
[Result "0-1"]
[WhiteElo "2852"]
[BlackElo "2633"]
[TimeControl "180+1"]
[EndTime "10:38:38 PST"]
[Termination "chessdjw won by resignation"]

1. e4 {[%clk 0:03:00.9]} 1... c5 {[%clk 0:03:00.3]} 2. Nf3 {[%clk 0:02:49.4]}
2... d6 {[%clk 0:03:00.4]} 3. d4 {[%clk 0:02:49.7]} 3... cxd4 {[%clk 0:03:01.3]}
4. Nxd4 {[%clk 0:02:50.2]} 4... Nf6 {[%clk 0:03:02]} 5. Nc3 {[%clk 0:02:50.8]}
5... a6 {[%clk 0:03:02.7]} 6. a3 {[%clk 0:02:51.2]} 6... e5 {[%clk 0:03:00.6]}
7. Nf5 {[%clk 0:02:51.4]} 7... d5 {[%clk 0:02:59.9]} 8. Bg5 {[%clk 0:02:51.4]}
8... d4 {[%clk 0:02:55.8]} 9. Bxf6 {[%clk 0:02:51.1]} 9... gxf6 {[%clk
0:02:54.8]} 10. Nb1 {[%clk 0:02:45.8]} 10... Bxf5 {[%clk 0:02:54.4]} 11. exf5
{[%clk 0:02:46.2]} 11... Qd5 {[%clk 0:02:54.6]} 12. Qh5 {[%clk 0:02:46.4]} 12...
Nd7 {[%clk 0:02:49.9]} 13. Nd2 {[%clk 0:02:41.5]} 13... Rc8 {[%clk 0:02:46.5]}
14. Kd1 {[%clk 0:02:07.2]} 14... b5 {[%clk 0:02:18.4]} 15. f3 {[%clk 0:02:01.9]}
15... Nc5 {[%clk 0:02:12.9]} 16. Bd3 {[%clk 0:02:01.6]} 16... Na4 {[%clk
0:01:41.8]} 17. Kc1 {[%clk 0:00:37.4]} 17... Nc5 {[%clk 0:01:34.8]} 18. Kd1
{[%clk 0:00:24.1]} 18... Be7 {[%clk 0:01:28.8]} 19. Ne4 {[%clk 0:00:20.5]} 19...
Nxd3 {[%clk 0:01:26]} 20. cxd3 {[%clk 0:00:21]} 20... Qb3+ {[%clk 0:01:26.3]}
21. Ke1 {[%clk 0:00:20.1]} 21... Qxd3 {[%clk 0:01:11.6]} 22. Rd1 {[%clk
0:00:11.4]} 22... Qe3+ {[%clk 0:01:10.3]} 23. Kf1 {[%clk 0:00:11.7]} 23... Rc2
{[%clk 0:01:10.1]} 24. Re1 {[%clk 0:00:12.1]} 24... Qd3+ {[%clk 0:00:39.6]} 25.
Kg1 {[%clk 0:00:12.2]} 25... Rg8 {[%clk 0:00:40]} 26. g3 {[%clk 0:00:12.2]}
26... Rxb2 {[%clk 0:00:34.4]} 27. h4 {[%clk 0:00:12.3]} 27... Qc2 {[%clk
0:00:31.2]} 0-1

[Event "*** Titled Tuesday Blitz"]
[Site "Chess.com"]
[Date "2021.02.09"]
[Round "4"]
[White "jaramsdal"]
[Black "j2806"]
[Result "1/2-1/2"]
[WhiteElo "2300"]
[BlackElo "2097"]
[TimeControl "180+1"]
[EndTime "10:38:38 PST"]
[Termination "Game drawn by repetition"]

1. e4 {[%clk 0:03:00.9]} 1... c5 {[%clk 0:02:55]} 2. Nf3 {[%clk 0:02:59.8]} 2...
d6 {[%clk 0:01:50.4]} 3. d4 {[%clk 0:02:54]} 3... cxd4 {[%clk 0:01:50.3]} 4.
Nxd4 {[%clk 0:02:54.9]} 4... Nf6 {[%clk 0:01:50.7]} 5. Nc3 {[%clk 0:02:53.8]}
5... a6 {[%clk 0:01:50]} 6. Be3 {[%clk 0:02:40.1]} 6... e5 {[%clk 0:01:48.5]} 7.
Nb3 {[%clk 0:02:28.8]} 7... Be6 {[%clk 0:01:47.6]} 8. f3 {[%clk 0:02:25.2]} 8...
Be7 {[%clk 0:01:47.2]} 9. Nd5 {[%clk 0:02:23.8]} 9... Bxd5 {[%clk 0:01:43.8]}
10. exd5 {[%clk 0:02:24.7]} 10... Nbd7 {[%clk 0:01:44.3]} 11. Be2 {[%clk
0:02:16.1]} 11... Rc8 {[%clk 0:01:42.9]} 12. c4 {[%clk 0:02:14.7]} 12... O-O
{[%clk 0:01:40.6]} 13. O-O {[%clk 0:02:14]} 13... Qc7 {[%clk 0:01:32]} 14. Rc1
{[%clk 0:02:13.3]} 14... Qb8 {[%clk 0:01:31.4]} 15. Na1 {[%clk 0:02:03.8]} 15...
b5 {[%clk 0:01:31]} 16. b3 {[%clk 0:01:58.5]} 16... bxc4 {[%clk 0:01:28.3]} 17.
Bxc4 {[%clk 0:01:54.7]} 17... Nb6 {[%clk 0:01:15.5]} 18. Bxa6 {[%clk 0:01:30.4]}
18... Rxc1 {[%clk 0:01:13.8]} 19. Qxc1 {[%clk 0:01:30.4]} 19... Nbxd5 {[%clk
0:01:13]} 20. Bf2 {[%clk 0:01:30.3]} 20... Qa8 {[%clk 0:01:09.1]} 21. Bb5 {[%clk
0:01:21.9]} 21... Qxa2 {[%clk 0:01:03.9]} 22. Qc4 {[%clk 0:01:16.5]} 22... Qa5
{[%clk 0:00:47.6]} 23. Nc2 {[%clk 0:01:12.4]} 23... Qc7 {[%clk 0:00:41.7]} 24.
Ne3 {[%clk 0:00:47.6]} 24... Qxc4 {[%clk 0:00:25.2]} 25. bxc4 {[%clk 0:00:43.5]}
25... Nxe3 {[%clk 0:00:23.7]} 26. Bxe3 {[%clk 0:00:43.3]} 26... d5 {[%clk
0:00:22.7]} 27. Bg5 {[%clk 0:00:37.7]} 27... dxc4 {[%clk 0:00:21.2]} 28. Bxc4
{[%clk 0:00:38.6]} 28... h6 {[%clk 0:00:21.5]} 29. Bh4 {[%clk 0:00:38]} 29...
Rc8 {[%clk 0:00:21.1]} 30. Ba2 {[%clk 0:00:35]} 30... Rc2 {[%clk 0:00:20.5]} 31.
Bb3 {[%clk 0:00:35.1]} 31... Rc3 {[%clk 0:00:20.4]} 32. Ba2 {[%clk 0:00:34.9]}
32... Rc2 {[%clk 0:00:20.4]} 33. Bb3 {[%clk 0:00:35.1]} 33... Rc3 {[%clk
0:00:20.9]} 34. Ba2 {[%clk 0:00:35]} 34... Rc2 {[%clk 0:00:21.4]} 1/2-1/2

[Event "*** Titled Tuesday Blitz"]
[Site "Chess.com"]
[Date "2021.02.09"]
[Round "4"]
[White "Taktikmonster"]
[Black "dennisodessa"]
[Result "0-1"]
[WhiteElo "2283"]
[BlackElo "2470"]
[TimeControl "180+1"]
[EndTime "10:38:39 PST"]
[Termination "dennisodessa won on time"]

1. e4 {[%clk 0:03:00.9]} 1... e6 {[%clk 0:02:56.1]} 2. d4 {[%clk 0:03:00.6]}
2... d5 {[%clk 0:02:55.8]} 3. Nd2 {[%clk 0:03:01.2]} 3... Nf6 {[%clk 0:02:55.8]}
4. e5 {[%clk 0:03:01]} 4... Nfd7 {[%clk 0:02:56.4]} 5. Bd3 {[%clk 0:03:01.4]}
5... c5 {[%clk 0:02:56.9]} 6. c3 {[%clk 0:03:02]} 6... Nc6 {[%clk 0:02:57.7]} 7.
Ne2 {[%clk 0:03:02.2]} 7... cxd4 {[%clk 0:02:58.4]} 8. cxd4 {[%clk 0:03:03.1]}
8... f6 {[%clk 0:02:58.3]} 9. exf6 {[%clk 0:03:04]} 9... Qxf6 {[%clk 0:02:59.1]}
10. O-O {[%clk 0:03:04.6]} 10... h6 {[%clk 0:03:00]} 11. Nf3 {[%clk 0:03:04.8]}
11... Bd6 {[%clk 0:03:00.9]} 12. Ng3 {[%clk 0:03:03.9]} 12... O-O {[%clk
0:03:01.2]} 13. Be3 {[%clk 0:02:53.6]} 13... Rd8 {[%clk 0:03:00.8]} 14. a3
{[%clk 0:02:51.3]} 14... Nf8 {[%clk 0:02:59.9]} 15. Qc2 {[%clk 0:02:50.5]} 15...
Bd7 {[%clk 0:02:59.3]} 16. b4 {[%clk 0:02:44.9]} 16... a6 {[%clk 0:02:57.9]} 17.
Rac1 {[%clk 0:02:37.7]} 17... Rac8 {[%clk 0:02:57.4]} 18. Qb1 {[%clk 0:02:38.2]}
18... Be8 {[%clk 0:02:57.4]} 19. Rfe1 {[%clk 0:02:32.4]} 19... Bg6 {[%clk
0:02:57.1]} 20. Bxg6 {[%clk 0:02:28.1]} 20... Nxg6 {[%clk 0:02:58]} 21. b5
{[%clk 0:02:10.2]} 21... axb5 {[%clk 0:02:44.1]} 22. Qxb5 {[%clk 0:02:11.1]}
22... Bxa3 {[%clk 0:02:42.1]} 23. Ra1 {[%clk 0:02:03.4]} 23... Bb4 {[%clk
0:02:28.5]} 24. Reb1 {[%clk 0:02:00.3]} 24... Bc3 {[%clk 0:02:28.7]} 25. Ra4
{[%clk 0:01:47]} 25... Ra8 {[%clk 0:01:47.5]} 26. Rxa8 {[%clk 0:01:13.4]} 26...
Rxa8 {[%clk 0:01:48.4]} 27. Rc1 {[%clk 0:01:13.6]} 27... Nxd4 {[%clk 0:01:29.9]}
28. Qxb7 {[%clk 0:01:04.6]} 28... Nxf3+ {[%clk 0:01:26.1]} 29. gxf3 {[%clk
0:01:05.5]} 29... Ra1 {[%clk 0:01:17.7]} 30. Rxa1 {[%clk 0:00:40.7]} 30... Bxa1
{[%clk 0:01:18.6]} 31. Nh5 {[%clk 0:00:37.2]} 31... Qxf3 {[%clk 0:01:18.7]} 32.
Ng3 {[%clk 0:00:13.7]} 32... Nh4 {[%clk 0:01:16.5]} 33. Qb8+ {[%clk 0:00:12.3]}
33... Kf7 {[%clk 0:01:08.7]} 34. Qb7+ {[%clk 0:00:12.4]} 34... Kf6 {[%clk
0:01:08.1]} 35. Nh5+ {[%clk 0:00:01.7]} 35... Qxh5 {[%clk 0:01:07.7]} 0-1

[Event "*** Titled Tuesday Blitz"]
[Site "Chess.com"]
[Date "2021.02.09"]
[Round "4"]
[White "Alex-11211"]
[Black "mamonika"]
[Result "1-0"]
[WhiteElo "2368"]
[BlackElo "2029"]
[TimeControl "180+1"]
[EndTime "10:38:42 PST"]
[Termination "Alex-11211 won on time"]

1. e4 {[%clk 0:03:00.9]} 1... c5 {[%clk 0:02:58.5]} 2. Nf3 {[%clk 0:03:01.2]}
2... e6 {[%clk 0:02:58]} 3. Nc3 {[%clk 0:02:59.7]} 3... Nf6 {[%clk 0:02:52.7]}
4. g3 {[%clk 0:02:55.7]} 4... d5 {[%clk 0:02:32.9]} 5. exd5 {[%clk 0:02:45.5]}
5... exd5 {[%clk 0:02:33.8]} 6. Bg2 {[%clk 0:02:44.9]} 6... Be7 {[%clk
0:02:26.1]} 7. O-O {[%clk 0:02:44.3]} 7... O-O {[%clk 0:02:26.1]} 8. d4 {[%clk
0:02:44.5]} 8... Nc6 {[%clk 0:02:23.7]} 9. Be3 {[%clk 0:02:39.4]} 9... cxd4
{[%clk 0:01:50.2]} 10. Nxd4 {[%clk 0:02:40.3]} 10... Be6 {[%clk 0:01:49]} 11. h3
{[%clk 0:02:29.4]} 11... Qd7 {[%clk 0:01:41.1]} 12. Kh2 {[%clk 0:02:28.6]} 12...
a6 {[%clk 0:00:41]} 13. Nce2 {[%clk 0:01:58.2]} 13... Ne5 {[%clk 0:00:27.5]} 14.
c3 {[%clk 0:01:34.2]} 14... Nc4 {[%clk 0:00:26.4]} 15. Bc1 {[%clk 0:01:33.9]}
15... Ne4 {[%clk 0:00:17.1]} 16. Nxe6 {[%clk 0:01:26]} 16... Qxe6 {[%clk
0:00:16.4]} 17. Nd4 {[%clk 0:01:25.2]} 17... Qg6 {[%clk 0:00:08.2]} 18. Qg4
{[%clk 0:01:15]} 18... Qxg4 {[%clk 0:00:06.5]} 19. hxg4 {[%clk 0:01:15.9]} 19...
Bc5 {[%clk 0:00:02.5]} 20. b3 {[%clk 0:01:03.9]} 20... Ncd6 {[%clk 0:00:01.7]}
21. Bb2 {[%clk 0:00:50.8]} 21... Rfe8 {[%clk 0:00:01.8]} 22. Rad1 {[%clk
0:00:46.5]} 22... Rac8 {[%clk 0:00:01.9]} 23. Nf5 {[%clk 0:00:43.6]} 23... Nb5
{[%clk 0:00:02.3]} 24. Bxe4 {[%clk 0:00:36.8]} 24... dxe4 {[%clk 0:00:02.4]} 25.
c4 {[%clk 0:00:37.2]} 25... Nc7 {[%clk 0:00:01.7]} 26. Nxg7 {[%clk 0:00:34.1]}
1-0

[Event "*** Titled Tuesday Blitz"]
[Site "Chess.com"]
[Date "2021.02.09"]
[Round "4"]
[White "tomsishere"]
[Black "KaterinaMiroshnik"]
[Result "0-1"]
[WhiteElo "2449"]
[BlackElo "2613"]
[TimeControl "180+1"]
[EndTime "10:38:43 PST"]
[Termination "KaterinaMiroshnik won by checkmate"]

1. Nf3 {[%clk 0:02:51.1]} 1... d6 {[%clk 0:03:00.9]} 2. g3 {[%clk 0:02:50.5]}
2... Nd7 {[%clk 0:03:01.8]} 3. d4 {[%clk 0:02:50]} 3... Ngf6 {[%clk 0:03:02.7]}
4. Nc3 {[%clk 0:02:49.1]} 4... e5 {[%clk 0:03:03.6]} 5. e4 {[%clk 0:02:48.7]}
5... Be7 {[%clk 0:03:03.5]} 6. Bg2 {[%clk 0:02:47.9]} 6... O-O {[%clk
0:03:03.3]} 7. O-O {[%clk 0:02:48.5]} 7... c6 {[%clk 0:03:03.3]} 8. h3 {[%clk
0:02:49.1]} 8... Qc7 {[%clk 0:03:03.1]} 9. a4 {[%clk 0:02:48.1]} 9... a6 {[%clk
0:03:02.4]} 10. Be3 {[%clk 0:02:48.2]} 10... b6 {[%clk 0:03:01.4]} 11. a5 {[%clk
0:02:44.7]} 11... b5 {[%clk 0:03:00.4]} 12. d5 {[%clk 0:02:45]} 12... c5 {[%clk
0:03:00.2]} 13. Nd2 {[%clk 0:02:43.1]} 13... Ne8 {[%clk 0:02:54.2]} 14. f4
{[%clk 0:02:42.4]} 14... exf4 {[%clk 0:02:51.5]} 15. gxf4 {[%clk 0:02:41.8]}
15... f5 {[%clk 0:02:51.5]} 16. e5 {[%clk 0:02:39.6]} 16... dxe5 {[%clk
0:02:49.1]} 17. d6 {[%clk 0:02:39.2]} 17... Bxd6 {[%clk 0:02:38.9]} 18. Bxa8
{[%clk 0:02:38.5]} 18... e4 {[%clk 0:02:39]} 19. Bd5+ {[%clk 0:02:32.3]} 19...
Kh8 {[%clk 0:02:37.4]} 20. Kh2 {[%clk 0:02:28]} 20... Ndf6 {[%clk 0:02:34.4]}
21. Ba2 {[%clk 0:02:27.1]} 21... c4 {[%clk 0:02:29.5]} 22. Qe2 {[%clk
0:02:19.3]} 22... Be6 {[%clk 0:02:24.1]} 23. Rf2 {[%clk 0:02:12.9]} 23... g5
{[%clk 0:02:13.7]} 24. Raf1 {[%clk 0:01:50.6]} 24... Ng7 {[%clk 0:02:09.8]} 25.
Kh1 {[%clk 0:01:46.2]} 25... Ngh5 {[%clk 0:01:39]} 26. Rg1 {[%clk 0:01:33.2]}
26... gxf4 {[%clk 0:01:36]} 27. Bd4 {[%clk 0:01:32.8]} 27... Ng3+ {[%clk
0:01:32.9]} 28. Rxg3 {[%clk 0:01:30.3]} 28... fxg3 {[%clk 0:01:33.8]} 29. Rf1
{[%clk 0:01:20.5]} 29... Be5 {[%clk 0:01:29.7]} 30. Qe3 {[%clk 0:01:09.8]} 30...
f4 {[%clk 0:01:26.7]} 31. Bxe5 {[%clk 0:01:05]} 31... g2+ {[%clk 0:01:21.9]} 32.
Kxg2 {[%clk 0:00:56.2]} 32... Qg7+ {[%clk 0:01:21.3]} 33. Kh1 {[%clk 0:00:55.8]}
33... fxe3 {[%clk 0:01:17]} 34. Ndxe4 {[%clk 0:00:56.3]} 34... Bxh3 {[%clk
0:01:10.9]} 35. Rg1 {[%clk 0:00:51.5]} 35... Qh6 {[%clk 0:01:10.6]} 36. Nxf6
{[%clk 0:00:48.7]} 36... Rxf6 {[%clk 0:01:10.3]} 37. Rg3 {[%clk 0:00:34.8]}
37... Bf1+ {[%clk 0:01:07.8]} 38. Kg1 {[%clk 0:00:32.4]} 38... e2 {[%clk
0:01:06.8]} 39. Ne4 {[%clk 0:00:16.6]} 39... e1=Q {[%clk 0:01:03.1]} 40. Nxf6
{[%clk 0:00:16.5]} 40... Bg2+ {[%clk 0:00:58.4]} 41. Kxg2 {[%clk 0:00:15.5]}
41... Qhh1# {[%clk 0:00:57.8]} 0-1

[Event "*** Titled Tuesday Blitz"]
[Site "Chess.com"]
[Date "2021.02.09"]
[Round "4"]
[White "dopolian"]
[Black "KubaGepard"]
[Result "0-1"]
[WhiteElo "2410"]
[BlackElo "2362"]
[TimeControl "180+1"]
[EndTime "10:38:43 PST"]
[Termination "KubaGepard won by resignation"]

1. b3 {[%clk 0:03:00.9]} 1... e5 {[%clk 0:02:58.7]} 2. Bb2 {[%clk 0:03:00.2]}
2... Nc6 {[%clk 0:02:57.8]} 3. e3 {[%clk 0:03:00.2]} 3... a6 {[%clk 0:02:53.4]}
4. c4 {[%clk 0:02:53.5]} 4... Nf6 {[%clk 0:02:52.2]} 5. d3 {[%clk 0:02:50.7]}
5... d5 {[%clk 0:02:51.2]} 6. cxd5 {[%clk 0:02:49.6]} 6... Nxd5 {[%clk
0:02:52.1]} 7. Nf3 {[%clk 0:02:48.7]} 7... Bd6 {[%clk 0:02:48.2]} 8. Be2 {[%clk
0:02:47]} 8... f5 {[%clk 0:02:44.8]} 9. O-O {[%clk 0:02:45.3]} 9... Be6 {[%clk
0:02:41.6]} 10. Nbd2 {[%clk 0:02:43.8]} 10... Qf6 {[%clk 0:02:23.1]} 11. Nc4
{[%clk 0:02:42.4]} 11... g5 {[%clk 0:02:15.7]} 12. e4 {[%clk 0:02:32.7]} 12...
Nf4 {[%clk 0:02:15.1]} 13. exf5 {[%clk 0:02:30.1]} 13... Bxf5 {[%clk 0:02:04.1]}
14. Re1 {[%clk 0:02:28.3]} 14... O-O-O {[%clk 0:02:01.4]} 15. Bf1 {[%clk
0:02:14]} 15... Rhe8 {[%clk 0:01:55.5]} 16. d4 {[%clk 0:02:04.9]} 16... e4
{[%clk 0:01:49.9]} 17. d5 {[%clk 0:02:00.8]} 17... Qh6 {[%clk 0:01:36.2]} 18.
dxc6 {[%clk 0:01:58.8]} 18... exf3 {[%clk 0:01:34.5]} 19. cxb7+ {[%clk
0:01:49.6]} 19... Kb8 {[%clk 0:01:32.5]} 20. Nxd6 {[%clk 0:01:47.6]} 20... fxg2
{[%clk 0:01:09.8]} 21. Rxe8 {[%clk 0:01:36.8]} 21... gxf1=Q+ {[%clk 0:01:06.8]}
22. Qxf1 {[%clk 0:01:34.1]} 22... Rxe8 {[%clk 0:00:59.1]} 23. Nxf5 {[%clk
0:01:14.7]} 23... Qe6 {[%clk 0:00:48.6]} 24. Ng3 {[%clk 0:01:08.8]} 24... h5
{[%clk 0:00:36.8]} 25. Bc3 {[%clk 0:00:50.2]} 25... Nh3+ {[%clk 0:00:22]} 26.
Kh1 {[%clk 0:00:44.4]} 26... Qc6+ {[%clk 0:00:20]} 27. f3 {[%clk 0:00:32.6]}
27... Qxc3 {[%clk 0:00:18.6]} 28. Rc1 {[%clk 0:00:28.9]} 28... Qd2 {[%clk
0:00:18.3]} 29. Rd1 {[%clk 0:00:24.5]} 29... Qxd1 {[%clk 0:00:17.8]} 0-1